bitfinex-derivatives/quotes_SOLF0:USTF0_20260105
["timestamp","ask_amount","ask_price","bid_price","bid_amount"]
[1767583204681,8.04813335,137.01,136.92,0.74361955]
[1767583205278,8.04813335,137.01,136.94,0.74361955]
[1767583205484,6.5721,137.01,136.94,0.74361955]
[1767583206283,86.28,137.02,136.94,0.74361955]
[1767583206588,87.75603335,137.02,136.94,0.74361955]
[1767583209989,86.28,137.02,136.94,0.74361955]
[1767583210191,94.32753335,137.02,136.94,0.74361955]
[1767583211589,94.32753335,137.02,136.93,6.5754]
[1767583212190,94.32753335,137.02,136.93,7.31901955]
[1767583212599,6.5706,137.04,136.94,0.74361955]
[1767583212894,87.75603335,137.03,136.94,0.74361955]
[1767583213088,86.28,137.03,136.95,0.74361955]
[1767583213287,86.28,137.03,136.95,2.2196529]
[1767583213490,86.28,137.03,136.95,0.74361955]
[1767583213892,86.28,137.03,136.95,8.7940529]
[1767583214096,86.28,137.03,136.96,0.74361955]
[1767583214392,86.28,137.03,136.94,2.2196529]
[1767583214992,1.47603335,137.02,136.94,2.2196529]
[1767583216696,92.8511,137.03,136.95,0.74361955]
[1767583217594,86.28,137.03,136.95,0.74361955]
[1767583217889,86.28,137.03,136.96,0.74361955]
[1767583223399,86.28,137.03,136.93,7.31901955]
[1767583223400,87.75603335,137.03,136.93,7.31901955]
[1767583223693,1.47603335,137.01,136.93,7.31901955]
[1767583224500,86.28,137.03,136.93,7.31901955]
[1767583224798,8.04793335,137.01,136.93,7.31901955]
[1767583225802,8.04793335,137.01,136.93,0.74361955]
[1767583228110,1.47603335,136.99,136.91,0.74361955]
[1767583228312,86.26,136.98,136.9,6.5767]
[1767583229606,86.26,136.98,136.9,7.32031955]
[1767583229908,86.26,136.98,136.91,0.74361955]
[1767583231115,6.5719,137.01,136.92,0.7010276]
[1767583231413,86.26,137.0,136.92,0.7010276]
[1767583234213,1.47603335,136.99,136.92,0.7010276]
[1767583234910,1.47603335,136.99,136.89,8.75436095]
[1767583235514,1.47603335,136.99,136.9,0.7010276]
[1767583235814,8.04913335,136.99,136.9,0.7010276]
[1767583236311,8.04913335,136.99,136.9,7.2778276]
[1767583237009,8.04913335,136.99,136.91,0.76215779]
[1767583239220,102.2335,137.01,136.91,0.76215779]
[1767583239221,1.47603335,137.01,136.93,0.76215779]
[1767583239514,86.28,137.01,136.93,0.76215779]
[1767583239716,87.75603335,137.01,136.93,0.76215779]
[1767583240720,87.75603335,137.01,136.93,7.33755779]
[1767583241023,1.47603335,136.99,136.9,0.76215779]
[1767583241516,1.47603335,136.97,136.9,0.76215779]
[1767583244920,6.573,136.99,136.9,0.76215779]
[1767583244921,6.573,136.99,136.91,0.76215779]
[1767583245123,1.47603335,136.97,136.88,0.76215779]
[1767583245518,1.47603335,136.96,136.88,0.76215779]
[1767583245915,1.47603335,136.96,136.88,7.33985779]
[1767583246115,87.75603335,136.96,136.88,7.33985779]
[1767583246623,86.28,136.96,136.88,7.33985779]
[1767583246821,87.75603335,136.96,136.88,7.33985779]
[1767583247221,86.28,136.97,136.9,0.76215779]
[1767583248020,1.47603335,136.98,136.92,0.76215779]
[1767583248421,1.47603335,136.99,136.92,0.76215779]
[1767583248621,1.47603335,136.99,136.9,0.76215779]
[1767583248822,1.47603335,136.98,136.9,0.76215779]
[1767583249719,1.47603335,136.98,136.9,7.33915779]
[1767583249917,1.47603335,136.98,136.91,0.76215779]
[1767583250823,92.8523,137.0,136.91,0.76215779]
[1767583251023,1.47603335,136.98,136.91,0.76215779]
[1767583251224,92.8523,137.0,136.91,0.76215779]
[1767583251418,1.47603335,136.98,136.91,0.76215779]
[1767583251821,92.8523,137.0,136.91,0.76215779]
[1767583252022,1.47603335,136.98,136.91,0.76215779]
[1767583252723,92.8523,137.0,136.91,0.76215779]
[1767583252911,1.47603335,136.98,136.91,0.76215779]
[1767583253625,92.8523,137.0,136.91,0.76215779]
[1767583253926,1.47603335,136.98,136.91,0.76215779]
[1767583255722,1.47603335,136.98,136.88,103.79633335]
[1767583255723,102.2614,136.97,136.88,0.76215779]
[1767583255928,1.47603335,136.92,136.86,0.76215779]
[1767583256527,86.28,136.94,136.86,7.34085779]
[1767583256728,1.47603335,136.92,136.86,7.34085779]
[1767583257232,86.28,136.94,136.86,7.34085779]
[1767583257529,1.47603335,136.93,136.86,7.34085779]
[1767583257927,86.28,136.94,136.86,7.34085779]
[1767583258130,1.47603335,136.93,136.86,7.34085779]
[1767583260029,1.47603335,136.91,136.84,7.34195779]
[1767583261236,86.28,136.94,136.84,7.34195779]
[1767583261530,1.47603335,136.9,136.84,7.34195779]
[1767583262544,2.3078417,136.92,136.84,7.34195779]
[1767583264642,8.8841417,136.92,136.84,0.76215779]
[1767583265147,6.5768,136.91,136.82,7.27603961]
[1767583265449,6.5768,136.91,136.82,0.69533961]
[1767583265648,2.3078417,136.9,136.82,0.69533961]
[1767583265946,86.3,136.89,136.82,0.69533961]
[1767583272047,86.3,136.89,136.81,6.5812]
[1767583273750,92.8778,136.89,136.8,0.69533961]
[1767583274352,8.8860417,136.88,136.8,0.69533961]
[1767583274656,8.8860417,136.88,136.78,0.69533961]
[1767583274657,2.3078417,136.88,136.78,0.69533961]
[1767583275654,6.5787,136.87,136.78,7.27793961]
[1767583278561,6.5792,136.86,136.78,7.27793961]
[1767583280558,6.5792,136.86,136.78,0.69533961]
[1767583280960,8.8870417,136.86,136.76,6.5835]
[1767583281161,8.8870417,136.86,136.77,0.69533961]
[1767583281357,2.3078417,136.86,136.77,0.69533961]
[1767583281662,2.3078417,136.86,136.75,0.69533961]
[1767583282066,6.5801,136.84,136.75,7.27943961]
[1767583282266,86.34,136.83,136.75,7.27943961]
[1767583286766,6.5801,136.84,136.75,7.27943961]
[1767583286970,86.36,136.83,136.75,7.27943961]
[1767583287163,6.5801,136.84,136.75,7.27943961]
[1767583287361,86.36,136.83,136.75,7.27943961]
[1767583287670,6.5801,136.84,136.75,7.27943961]
[1767583287869,86.36,136.83,136.75,7.27943961]
[1767583290668,86.36,136.83,136.76,0.70389001]
[1767583300067,92.9406,136.83,136.74,0.73682488]
[1767583301472,92.9406,136.83,136.74,7.32142488]
[1767583302377,92.9406,136.83,136.75,6.5841]
[1767583306272,102.3381,136.87,136.75,6.5841]
[1767583306273,2.3078417,136.88,136.77,0.73682488]
[1767583306469,5.79522625,136.87,136.77,0.73682488]
[1767583306672,86.38,136.87,136.77,0.73682488]
[1767583307583,92.9588,136.87,136.78,6.5826]
[1767583308676,92.9588,136.87,136.78,7.31942488]
[1767583312080,6.5777,136.89,136.8,0.73682488]
[1767583312278,2.3078417,136.92,136.81,0.73682488]
[1767583312483,102.276,136.95,136.81,0.73682488]
[1767583312484,86.38,136.91,136.81,0.73682488]
[1767583313686,92.9569,136.91,136.83,7.31712488]
[1767583317898,92.9569,136.91,136.81,7.31802488]
[1767583318196,92.9569,136.91,136.82,0.73682488]
[1767583318792,6.5773,136.9,136.82,0.73682488]
[1767583322500,6.5773,136.9,136.82,2.21378606]
[1767583328503,87.85696118,136.91,136.82,8.79438606]
[1767583329297,94.43366118,136.91,136.82,7.31742488]
[1767583336003,94.43366118,136.91,136.83,7.33290916]
[1767583349412,94.43366118,136.91,136.84,7.33240916]
[1767583349413,87.85696118,136.91,136.84,7.33240916]
[1767583349617,1.47696118,136.91,136.84,7.33240916]
[1767583349820,87.81696118,136.91,136.84,7.33240916]
[1767583350020,86.34,136.91,136.85,0.75260916]
[1767583359228,86.34,136.91,136.84,7.28577561]
[1767583359422,86.34,136.91,136.85,0.70597561]
[1767583359726,102.276,136.95,136.86,0.70597561]
[1767583359727,6.5749,136.95,136.86,0.70597561]
[1767583359927,86.32,136.94,136.86,0.70597561]
[1767583361523,86.32,136.94,136.87,6.5784]
[1767583364923,1.47696118,136.93,136.86,0.70597561]
[1767583369121,1.47696118,136.93,136.86,7.28477561]
[1767583376732,6.5768,136.91,136.83,6.5802]
[1767583376931,6.5768,136.91,136.83,7.28617561]
[1767583376932,1.47696118,136.89,136.83,7.28617561]
[1767583377937,1.47696118,136.89,136.84,0.70597561]
[1767583378434,0.05007222,136.87,136.84,0.70597561]
[1767583381033,0.05007222,136.87,136.82,0.71881047]
[1767583382035,0.05007222,136.87,136.79,0.71881047]
[1767583382240,1.47696118,136.85,136.77,0.71881047]
[1767583382539,0.05007222,136.87,136.77,0.71881047]
[1767583382540,2.31003151,136.86,136.77,0.71881047]
[1767583382738,8.88923151,136.86,136.77,0.71881047]
[1767583383138,0.05078275,136.83,136.77,0.71881047]
[1767583383442,2.31003151,136.86,136.78,0.71881047]
[1767583383642,86.32,136.87,136.78,0.71881047]
[1767583383842,86.32,136.87,136.8,0.71881047]
[1767583385834,86.32,136.87,136.79,6.5822]
[1767583385835,2.31003151,136.86,136.78,0.71881047]
[1767583386231,86.32,136.87,136.78,0.71881047]
[1767583386232,2.31003151,136.84,136.78,0.71881047]
[1767583387245,2.31003151,136.84,136.75,0.71881047]
[1767583388037,2.31003151,136.82,136.75,0.71881047]
[1767583388234,88.65003151,136.82,136.73,7.30381047]
[1767583388437,95.23123151,136.82,136.73,0.71881047]
[1767583389237,8.89013151,136.84,136.73,0.71881047]
[1767583389446,86.34,136.83,136.73,0.71881047]
[1767583389742,8.89113151,136.82,136.73,6.585]
[1767583389940,8.89113151,136.82,136.73,7.30381047]
[1767583391942,8.89113151,136.82,136.74,0.71881047]
[1767583392142,86.34,136.83,136.74,0.71881047]
[1767583392349,86.36,136.83,136.75,0.71881047]
[1767583392842,92.9407,136.83,136.72,6.5855]
[1767583393055,2.31003151,136.82,136.73,0.71881047]
[1767583394748,8.89123151,136.82,136.73,0.71881047]
[1767583397040,8.89123151,136.82,136.72,6.5855]
[1767583397041,8.89013151,136.84,136.74,0.71881047]
[1767583397244,95.25013151,136.84,136.74,0.71881047]
[1767583398554,95.25013151,136.84,136.75,0.71881047]
[1767583406358,191.02973151,136.84,136.73,0.71881047]
[1767583406555,2.31003151,136.82,136.73,0.71881047]
[1767583407560,8.89113151,136.82,136.73,0.71881047]
[1767583411757,104.68603151,136.82,136.71,0.67378676]
[1767583412262,2.31003151,136.78,136.69,0.67378676]
[1767583412470,86.38,136.77,136.69,0.67378676]
[1767583413067,6.584,136.76,136.69,0.67378676]
[1767583416264,92.9825,136.79,136.71,0.71478951]
[1767583417163,6.5835,136.77,136.68,7.30218951]
[1767583417368,6.5835,136.77,136.68,0.71478951]
[1767583417369,2.31003151,136.77,136.68,0.71478951]
[1767583417860,2.31003151,136.75,136.66,0.71478951]
[1767583418065,86.4,136.74,136.66,0.71478951]
[1767583418265,6.5841,136.76,136.67,0.71478951]
[1767583418467,86.4,136.75,136.67,0.71478951]
[1767583419661,86.4,136.75,136.68,0.71478951]
[1767583423578,92.9845,136.75,136.66,0.71478951]
[1767583423768,86.4,136.75,136.66,0.71478951]
[1767583424673,6.5851,136.74,136.66,0.71478951]
[1767583427671,6.584,136.76,136.67,0.71478951]
[1767583427870,86.42,136.75,136.67,0.71478951]
[1767583428579,86.42,136.75,136.68,0.71478951]
[1767583428779,93.0045,136.75,136.65,0.71478951]
[1767583428981,86.42,136.75,136.65,0.71478951]
[1767583430580,6.585,136.74,136.65,7.30358951]
[1767583431871,6.585,136.74,136.66,0.71478951]
[1767583434180,8.89413151,136.76,136.67,0.71478951]
[1767583434372,86.42,136.75,136.67,0.71478951]
[1767583435267,86.42,136.75,136.65,102.4942]
[1767583435268,86.42,136.75,136.65,0.71478951]
[1767583436575,6.5849,136.74,136.66,7.30318951]
[1767583440184,86.42,136.75,136.66,7.30318951]
[1767583441584,93.0044,136.75,136.66,7.30318951]
[1767583442487,94.48498387,136.75,136.66,7.30318951]
[1767583444479,86.42,136.74,136.66,7.30318951]
[1767583446187,93.0049,136.74,136.66,0.71478951]
[1767583446385,93.0049,136.74,136.58,434.61334184]
[1767583446386,1.48058387,136.69,136.62,0.63232879]
[1767583446586,87.90058387,136.69,136.62,0.63232879]
[1767583447684,94.48788387,136.69,136.6,7.22342879]
[1767583447886,94.48788387,136.69,136.61,0.63232879]
[1767583451287,6.5878,136.68,136.6,7.22362879]
[1767583452089,1.48058387,136.67,136.6,7.22362879]
[1767583452492,1.48058387,136.67,136.6,0.63232879]
[1767583452886,1.48058387,136.67,136.58,0.63232879]
[1767583453082,1.48058387,136.65,136.56,7.22562879]
[1767583453291,86.44,136.64,136.56,7.22562879]
[1767583453595,86.44,136.65,136.56,2.11291266]
[1767583453791,86.44,136.65,136.57,0.63232879]
[1767583455180,1.48058387,136.64,136.55,0.63232879]
[1767583456700,87.92058387,136.65,136.56,0.63232879]
[1767583457493,86.46,136.64,136.57,0.63232879]
[1767583460497,86.46,136.64,136.56,7.22532879]
[1767583462496,1.48058387,136.65,136.57,7.22502879]
[1767583462698,86.48,136.64,136.57,7.22502879]
[1767583463899,1.48058387,136.66,136.57,7.22502879]
[1767583464095,86.48,136.65,136.59,0.053604]
[1767583464301,87.96058387,136.66,136.59,0.68593279]
[1767583469702,1.48058387,136.68,136.61,0.63232879]
[1767583470093,86.48,136.69,136.62,6.5903]
[1767583470394,86.48,136.69,136.62,7.19928998]
[1767583471905,1.48058387,136.7,136.62,7.19928998]
[1767583472102,87.96058387,136.7,136.62,7.19928998]
[1767583472602,86.48,136.7,136.62,7.19928998]
[1767583472801,87.96058387,136.7,136.62,7.19928998]
[1767583473800,87.96058387,136.7,136.63,6.5899]
[1767583473995,86.48,136.71,136.63,7.19888998]
[1767583474303,86.48,136.71,136.64,0.60898998]
[1767583474601,86.48,136.71,136.65,0.60898998]
[1767583481209,32.34014148,136.72,136.66,0.57125365]
[1767583481409,94.52548387,136.74,136.66,0.57125365]
[1767583483402,86.46,136.74,136.66,7.15965365]
[1767583483612,87.94058387,136.74,136.66,7.15965365]
[1767583484806,1.48058387,136.77,136.68,0.57125365]
[1767583485007,87.94058387,136.77,136.68,0.57125365]
[1767583485600,94.52408387,136.77,136.68,7.15855365]
[1767583486106,94.52408387,136.77,136.66,0.57125365]
[1767583486107,1.48058387,136.75,136.66,0.57125365]
[1767583487607,1.48058387,136.75,136.66,7.15975365]
[1767583490721,8.06508387,136.75,136.66,7.15975365]
[1767583491015,1.48058387,136.73,136.64,7.16045365]
[1767583491318,86.44,136.72,136.64,7.16045365]
[1767583492920,1.48058387,136.71,136.64,7.16045365]
[1767583493722,1.48058387,136.71,136.62,8.64223752]
[1767583494313,86.44,136.72,136.64,0.57125365]
[1767583494517,87.92058387,136.72,136.64,0.57125365]
[1767583495724,87.92058387,136.72,136.64,7.16065365]
[1767583496724,87.92058387,136.72,136.65,6.5889]
[1767583498119,87.92058387,136.72,136.66,6.5885]
[1767583498325,86.44,136.72,136.66,0.57125365]
[1767583498520,1.48058387,136.76,136.67,0.57125365]
[1767583499726,1.48058387,136.76,136.69,6.587]
[1767583501124,1.48058387,136.76,136.69,7.12273652]
[1767583501325,86.44,136.77,136.69,7.12273652]
[1767583501527,87.92058387,136.77,136.69,7.12273652]
[1767583503137,86.44,136.77,136.7,0.53573652]
[1767583503526,102.3732,136.82,136.71,0.53573652]
[1767583503730,1.48058387,136.8,136.72,0.53573652]
[1767583504035,1.48058387,136.78,136.7,2.01632039]
[1767583504235,1.48058387,136.78,136.7,0.53573652]
[1767583504637,88.75192092,136.8,136.7,0.53573652]
[1767583504831,95.33402092,136.8,136.71,7.12173652]
[1767583505025,95.33402092,136.8,136.71,0.53573652]
[1767583505026,86.44,136.8,136.71,0.53573652]
[1767583505230,2.31192092,136.82,136.72,0.53573652]
[1767583505434,86.44,136.81,136.72,0.53573652]
[1767583505836,2.31192092,136.8,136.69,188.9036]
[1767583506037,2.31192092,136.8,136.7,0.53573652]
[1767583507534,8.89402092,136.8,136.71,7.12183652]
[1767583509340,6.5821,136.8,136.71,7.12183652]
[1767583509841,86.44,136.81,136.73,0.53573652]
[1767583511745,86.44,136.81,136.73,7.12083652]
[1767583512949,93.0215,136.81,136.73,7.12083652]
[1767583513247,93.0215,136.81,136.73,0.53573652]
[1767583515049,6.582,136.8,136.73,0.53573652]
[1767583518557,6.582,136.8,136.72,6.5855]
[1767583518759,2.31192092,136.78,136.69,0.53573652]
[1767583518961,2.31192092,136.78,136.66,0.53573652]
[1767583519253,6.5845,136.75,136.66,0.53573652]
[1767583519557,88.71192092,136.74,136.66,0.53573652]
[1767583519859,95.29682092,136.74,136.66,0.53573652]
[1767583520758,86.4,136.74,136.66,7.12403652]
[1767583522749,86.4,136.74,136.67,7.12363652]
[1767583522951,86.42,136.76,136.68,0.53573652]
[1767583524565,86.42,136.76,136.68,7.12313652]
[1767583525662,93.004,136.76,136.68,7.12313652]
[1767583535470,6.5845,136.75,136.66,6.5883]
[1767583535772,6.5845,136.75,136.66,7.14327803]
[1767583536376,6.5849,136.74,136.66,7.14327803]
[1767583536676,6.5849,136.74,136.64,7.12143426]
[1767583536677,2.31192092,136.74,136.64,7.12143426]
[1767583536864,6.5859,136.72,136.64,0.53213426]
[1767583537060,86.42,136.71,136.64,0.53213426]
[1767583537263,6.5869,136.7,136.62,0.53213426]
[1767583537467,86.42,136.71,136.62,0.53213426]
[1767583538265,86.42,136.71,136.63,0.53213426]
[1767583546485,6.586,136.72,136.64,0.53213426]
[1767583546777,93.0264,136.71,136.62,0.53213426]
[1767583546980,95.33832092,136.71,136.62,0.53213426]
[1767583549282,86.44,136.71,136.63,7.12203426]
[1767583550684,86.44,136.71,136.65,0.53213426]
[1767583550880,6.5859,136.72,136.65,0.53213426]
[1767583551082,93.0259,136.72,136.65,0.53213426]
[1767583555187,86.44,136.72,136.66,0.53213426]
[1767583560491,8.89652092,136.75,136.67,0.50293565]
[1767583560699,86.44,136.74,136.67,0.50293565]
[1767583563902,86.44,136.74,136.67,7.09073565]
[1767583566506,87.92063189,136.74,136.67,7.09073565]
[1767583568304,86.44,136.74,136.67,7.09073565]
[1767583568603,87.92063189,136.74,136.67,7.09073565]
[1767583580815,86.44,136.74,136.67,7.09073565]
[1767583583612,86.44,136.74,136.68,7.09043565]
[1767583583812,86.44,136.74,136.68,6.5875]
[1767583587609,1.48063189,136.73,136.66,7.09123565]
[1767583587810,1.48063189,136.73,136.64,1.98356754]
[1767583588617,1.48063189,136.73,136.65,0.50293565]
[1767583589111,8.06603189,136.73,136.65,0.50293565]
[1767583589309,1.48063189,136.73,136.65,0.50293565]
[1767583590717,6.5859,136.72,136.65,0.50293565]
[1767583591418,1.48063189,136.71,136.63,0.50075176]
[1767583591818,8.06713189,136.71,136.63,0.50075176]
[1767583592219,1.48063189,136.69,136.63,0.50075176]
[1767583593921,0.38359769,136.91,136.8,0.50075176]
[1767583594113,0.38359769,136.91,136.85,1.48063189]
[1767583594315,2.387489,136.93,136.85,1.98138365]
[1767583594717,0.387489,136.96,136.88,0.50075176]
[1767583595111,22.3337559,137.04,136.88,0.50075176]
[1767583595317,0.39133209,136.99,136.91,1.98138365]
[1767583595522,0.39133209,136.99,136.91,104.28378365]
[1767583595821,62.0,136.98,136.92,102.2927]
[1767583596214,0.39699412,136.97,136.9,102.3067]
[1767583597621,0.39699412,136.97,136.9,108.8837]
[1767583597817,0.39699412,136.97,136.91,102.2998]
[1767583599422,62.0,136.96,136.91,102.2998]
[1767583599620,62.0,136.96,136.91,108.8762]
[1767583599824,62.0,136.96,136.91,6.5764]
[1767583600013,62.0,136.96,136.9,102.3067]
[1767583600216,62.0,136.96,136.9,103.78733189]
[1767583600625,62.0,136.96,136.91,109.35564597]
[1767583601625,62.0,136.96,136.91,7.05534597]
[1767583602822,62.0,136.96,136.92,1.48063189]
[1767583603521,0.42223508,136.99,136.92,110.34893189]
[1767583603716,0.42223508,136.99,136.92,6.5757]
[1767583603921,0.42223508,136.99,136.93,1.48063189]
[1767583604624,62.0,136.98,136.93,1.48063189]
[1767583605818,0.42907486,136.97,136.89,0.47884597]
[1767583607019,0.42907486,136.97,136.9,1.48063189]
[1767583609025,62.0,136.96,136.9,1.48063189]
[1767583609416,62.44230207,136.96,136.9,1.48063189]
[1767583610227,62.44230207,136.96,136.89,7.05614597]
[1767583614430,0.45799563,136.95,136.87,197.16617786]
[1767583616933,0.45799563,136.95,136.89,6.5774]
[1767583617334,0.45799563,136.95,136.89,8.53687786]
[1767583618037,0.45799563,136.95,136.89,7.05624597]
[1767583620540,1.95943036,136.99,136.91,0.54886168]
[1767583620735,0.47879847,136.99,136.92,0.54886168]
[1767583621231,0.47879847,136.99,136.94,6.5748]
[1767583621633,62.0,136.98,136.94,6.5748]
[1767583623237,62.0,136.98,136.92,7.12466168]
[1767583624134,62.0,136.98,136.93,6.5754]
[1767583624336,62.48980106,136.98,136.93,6.5754]
[1767583624546,0.48980106,136.97,136.93,6.5754]
[1767583625038,0.48980106,136.97,136.91,93.42516168]
[1767583627847,62.0,136.98,136.92,7.12466168]
[1767583630554,62.0,136.98,136.93,7.12416168]
[1767583634750,0.51515324,136.97,136.91,7.12526168]
[1767583635646,0.51515324,136.97,136.91,6.5764]
[1767583635840,0.51515324,136.97,136.89,7.12606168]
[1767583636651,0.51515324,136.97,136.9,6.5769]
[1767583637657,0.51515324,136.97,136.92,0.05539428]
[1767583637957,0.04922664,136.95,136.92,0.05539428]
[1767583638155,0.51515324,136.97,136.92,0.05539428]
[1767583640052,0.51515324,136.97,136.88,6.5778]
[1767583640053,0.5267995,136.96,136.88,6.5778]
[1767583640247,0.5267995,136.96,136.88,7.12666168]
[1767583649562,0.5267995,136.96,136.89,6.5773]
[1767583651969,0.5267995,136.96,136.89,7.12150486]
[1767583654668,0.5267995,136.96,136.87,86.28]
[1767583654669,0.50641495,136.95,136.87,7.12240486]
[1767583654870,0.50641495,136.94,136.87,7.12240486]
[1767583656170,0.50641495,136.94,136.88,7.16118142]
[1767583656570,86.80641495,136.94,136.88,7.16118142]
[1767583656772,86.80641495,136.94,136.89,6.5772]
[1767583657068,86.3,136.94,136.89,7.16048142]
[1767583658476,86.3,136.94,136.9,7.16008142]
[1767583659275,62.51762624,136.98,136.91,0.58328142]
[1767583659479,86.81762624,136.97,136.91,0.58328142]
[1767583659982,0.51762624,136.96,136.91,0.58328142]
[1767583660478,86.3,136.97,136.91,0.58328142]
[1767583661082,86.8192276,136.97,136.91,0.58328142]
[1767583663983,0.52392363,136.96,136.88,7.16108142]
[1767583664482,0.52392363,136.96,136.88,0.58328142]
[1767583665280,0.52696905,136.95,136.88,0.58328142]
[1767583666676,0.52696905,136.95,136.87,6.5783]
[1767583668081,0.52994583,136.94,136.86,0.58328142]
[1767583668385,0.53140984,136.92,136.86,0.58328142]
[1767583669883,62.0,136.91,136.86,0.58328142]
[1767583670484,62.53428854,136.91,136.85,6.5792]
[1767583673292,62.53428854,136.91,136.84,0.58328142]
[1767583677891,0.54387022,136.9,136.84,0.58328142]
[1767583681290,0.54387022,136.9,136.84,7.16308142]
[1767583682299,62.0,136.91,136.86,0.56688558]
[1767583682500,86.87167753,136.94,136.86,0.56688558]
[1767583683392,62.0,136.93,136.86,0.56688558]
[1767583683704,62.0,136.93,136.88,0.56688558]
[1767583683998,86.87289176,136.96,136.88,0.56688558]
[1767583684192,86.87289176,136.96,136.91,0.56688558]
[1767583684392,6.5725,137.0,136.91,0.56688558]
[1767583684393,86.32,136.97,136.91,0.56688558]
[1767583684990,52.0,136.96,136.91,0.56688558]
[1767583685593,52.0,136.96,136.91,7.14318558]
[1767583698711,52.0,136.96,136.92,0.56688558]
[1767583699109,85.93212464,136.97,136.92,7.14278558]
[1767583699611,0.56949046,136.99,136.93,0.56688558]
[1767583699797,86.86949046,136.99,136.93,0.56688558]
[1767583700198,40.0,136.98,136.94,0.56688558]
[1767583702314,86.3,136.99,136.94,7.14188558]
[1767583703206,28.0,136.98,136.94,0.56688558]
[1767583704612,0.57344553,137.0,136.94,7.14188558]
[1767583705513,17.0,136.99,136.94,7.14188558]
[1767583706011,0.57344553,137.0,136.95,7.14128558]
[1767583706219,86.85644963,137.01,136.95,0.56688558]
[1767583707117,5.0,137.0,136.95,0.56688558]
[1767583707605,5.0,137.0,136.96,6.574]
[1767583708819,86.85644963,137.01,136.96,6.574]
[1767583713723,2.05895789,137.0,136.94,6.5748]
[1767583714715,0.58369786,137.0,136.94,6.5748]
[1767583715021,0.58453738,136.99,136.94,6.5748]
[1767583717025,88.34244612,137.01,136.95,0.59285215]
[1767583717522,88.34244612,137.01,136.95,7.16735215]
[1767583719118,86.86718609,137.01,136.95,7.16735215]
[1767583721326,0.58718609,137.01,136.95,7.16735215]
[1767583724230,2.06244612,137.01,136.95,7.16735215]
[1767583725520,1.47526003,137.01,136.97,0.59285215]
[1767583726325,146.23669672,137.11,136.96,6.5739]
[1767583726326,102.1645,137.1,136.96,102.2625]
[1767583726630,0.59479477,137.04,136.98,0.59285215]
[1767583727132,0.59479477,137.04,136.99,6.5726]
[1767583727718,92.8291,137.07,136.99,6.5726]
[1767583727924,0.5955164,137.06,137.0,6.5721]
[1767583728318,0.5962171,137.08,137.01,0.59285215]
[1767583728929,0.5962171,137.08,137.01,7.16415215]
[1767583729130,2.07147713,137.08,137.01,7.16415215]
[1767583730131,0.5962171,137.08,137.01,7.16415215]
[1767583730333,1.47526003,137.07,137.01,7.16415215]
[1767583731534,2.0735407,137.07,137.01,7.16415215]
[1767583734525,0.59828067,137.07,137.01,7.16415215]
[1767583734729,2.0735407,137.07,137.01,7.16415215]
[1767583735235,0.59828067,137.07,137.01,7.16415215]
[1767583735438,2.0735407,137.07,137.01,7.16415215]
[1767583735731,2.0735407,137.07,137.01,0.59285215]
[1767583736530,0.6015506,137.06,137.01,0.59285215]
[1767583736730,2.07681063,137.08,137.01,0.59285215]
[1767583738035,0.6015506,137.08,137.01,0.59285215]
[1767583738240,2.07681063,137.08,137.01,0.59285215]
[1767583738836,0.60280776,137.08,137.01,0.59285215]
[1767583739137,1.47526003,137.07,137.01,0.59285215]
[1767583740642,2.07943038,137.07,137.01,0.59285215]
[1767583741245,0.60417035,137.07,137.01,0.59285215]
[1767583746436,2.07943038,137.07,137.01,0.59285215]
[1767583748946,0.60881858,137.06,137.01,0.59285215]
[1767583749249,0.60881858,137.06,137.0,6.5719]
[1767583749434,0.60881858,137.06,136.99,0.64882159]
[1767583749937,0.60936828,137.04,136.99,0.64882159]
[1767583751451,0.61045479,137.08,137.0,0.64882159]
[1767583751750,0.61045479,137.07,137.0,0.64882159]
[1767583752141,2.08571482,137.07,137.0,0.64882159]
[1767583752341,2.08571482,137.07,137.0,7.22072159]
[1767583752546,0.61045479,137.07,137.0,7.22072159]
[1767583752950,0.61045479,137.07,137.0,0.64882159]
[1767583757858,0.61045479,137.07,136.97,102.2548]
[1767583757859,0.61357377,137.06,136.98,0.64882159]
[1767583759762,0.61457498,137.05,136.98,0.64882159]
[1767583760659,7.18467498,137.05,136.96,0.64882159]
[1767583760865,0.61507401,137.04,136.96,0.64882159]
[1767583762161,0.61555739,137.02,136.96,0.64882159]
[1767583765364,86.22,137.03,136.97,0.64882159]
[1767583765666,86.85720587,137.04,136.97,0.64882159]
[1767583766060,0.61720587,137.03,136.97,0.64882159]